bitfinex/quotes_SOLUSD_20220129
["timestamp","ask_amount","ask_price","bid_price","bid_amount"]
[1643464521282,0.25,98.309,98.253,0.25]
[1643464521483,22.8637,98.319,98.253,0.25]
[1643464522085,22.8637,98.319,98.254,6.0]
[1643464522282,22.8637,98.319,98.255,0.25]
[1643464522683,22.8637,98.319,98.255,6.25]
[1643464523686,22.7389,98.337,98.255,6.25]
[1643464523888,22.7389,98.337,98.259,1.35242967]
[1643464524088,22.7389,98.337,98.269,6.0]
[1643464524287,22.7389,98.337,98.27,0.25]
[1643464524490,22.7389,98.337,98.271,101.8]
[1643464524695,22.7389,98.337,98.275,34.47982115]
[1643464524891,22.7389,98.337,98.282,101.8]
[1643464525088,22.7389,98.337,98.292,6.0]
[1643464526090,0.25,98.336,98.292,6.0]
[1643464526292,0.25,98.336,98.282,101.8]
[1643464526490,22.7389,98.337,98.292,6.0]
[1643464526692,22.7389,98.337,98.275,34.47982115]
[1643464527495,22.7389,98.337,98.285,6.0]
[1643464527892,15.272,98.33,98.285,6.0]
[1643464528093,22.8054,98.359,98.285,6.0]
[1643464528295,22.8054,98.359,98.286,0.25]
[1643464529092,0.25,98.358,98.286,0.25]
[1643464529291,0.25,98.358,98.285,5.75]
[1643464529493,0.25,98.358,98.286,0.25]
[1643464530093,6.0,98.349,98.275,34.47982115]
[1643464530295,0.25,98.348,98.275,34.47982115]
[1643464530492,6.0,98.349,98.258,1.35242967]
[1643464530694,0.25,98.348,98.258,1.35242967]
[1643464530897,0.25,98.348,98.259,1.35242967]
[1643464531093,0.25,98.348,98.258,1.35242967]
[1643464531294,0.25,98.348,98.264,6.0]
[1643464531500,0.25,98.348,98.268,6.0]
[1643464531994,0.25,98.348,98.275,6.0]
[1643464532394,6.0,98.34,98.276,0.25]
[1643464532793,0.25,98.348,98.276,0.25]
[1643464532794,24.9621,98.339,98.276,0.25]
[1643464532995,24.7121,98.339,98.276,0.25]
[1643464533399,24.7121,98.339,98.277,2.53843087]
[1643464533597,24.7121,98.339,98.287,6.0]
[1643464533795,24.7121,98.339,98.288,0.25]
[1643464535096,24.7121,98.339,98.276,0.25]
[1643464535297,24.7121,98.339,98.266,0.25]
[1643464535497,24.7121,98.339,98.275,6.0]
[1643464535901,24.7121,98.339,98.276,0.25]
[1643464536099,24.7121,98.339,98.276,6.25]
[1643464536398,6.0,98.329,98.276,0.25]
[1643464536799,0.25,98.328,98.262,1.35242967]
[1643464537000,0.25,98.328,98.245,2.5384042]
[1643464537001,0.25,98.328,98.255,1.35242967]
[1643464537200,0.25,98.328,98.252,1.35242967]
[1643464537401,6.25,98.328,98.251,1.35242967]
[1643464537600,24.3593,98.327,98.25,1.35242967]
[1643464537802,24.3593,98.327,98.252,42.85860122]
[1643464537803,0.25,98.326,98.252,42.85860122]
[1643464538001,6.0,98.317,98.252,42.85860122]
[1643464538404,0.25,98.316,98.262,6.0]
[1643464538604,6.0,98.317,98.252,42.85860122]
[1643464539004,6.0,98.317,98.262,6.0]
[1643464539202,0.25,98.316,98.252,42.85860122]
[1643464539401,0.25,98.316,98.264,6.0]
[1643464539602,0.25,98.316,98.262,6.0]
[1643464539803,0.25,98.316,98.252,42.85860122]
[1643464540405,0.25,98.316,98.253,0.25]
[1643464540605,0.25,98.316,98.262,6.0]
[1643464540905,6.0,98.317,98.262,6.0]
[1643464540906,6.0,98.317,98.263,0.25]
[1643464541904,6.0,98.317,98.257,0.25]
[1643464542531,6.0,98.317,98.253,1.60242967]
[1643464542729,6.0,98.317,98.253,1.35242967]
[1643464542931,6.0,98.317,98.263,6.0]
[1643464543136,12.4,98.36,98.263,6.0]
[1643464543334,15.268,98.35,98.267,1.35242967]
[1643464543534,15.268,98.35,98.277,6.0]
[1643464543934,15.268,98.35,98.278,2.5384042]
[1643464544132,15.268,98.35,98.284,6.0]
[1643464544331,15.268,98.35,98.285,42.1311009]
[1643464544534,15.268,98.35,98.295,6.0]
[1643464544931,24.5514,98.372,98.296,0.25]
[1643464545132,24.5514,98.372,98.296,8.7884042]
[1643464545133,15.265,98.37,98.296,8.7884042]
[1643464545332,15.265,98.37,98.297,2.5384042]
[1643464545733,6.0,98.36,98.298,0.25]
[1643464545933,24.9453,98.359,98.298,0.25]
[1643464546135,25.1953,98.359,98.298,0.25]
[1643464546333,0.25,98.358,98.298,0.25]
[1643464546935,0.25,98.358,98.297,0.25]
[1643464547635,24.9453,98.359,98.287,0.25]
[1643464547836,24.9453,98.359,98.298,2.5384042]
[1643464548036,24.9453,98.359,98.308,6.0]
[1643464548237,24.9453,98.359,98.299,0.25]
[1643464548440,24.9453,98.359,98.309,2.7884042]
[1643464548839,24.9453,98.359,98.31,2.5384042]
[1643464549240,0.25,98.358,98.311,0.25]
[1643464550443,0.25,98.358,98.295,6.0]
[1643464551744,0.25,98.358,98.285,41.8811009]
[1643464551943,6.0,98.349,98.286,0.25]
[1643464552243,15.27,98.34,98.276,0.25]
[1643464552647,0.25,98.339,98.276,0.25]
[1643464552844,15.27,98.34,98.277,2.5384042]
[1643464553343,15.27,98.34,98.287,6.0]
[1643464553544,24.6673,98.339,98.287,6.0]
[1643464553747,24.6673,98.339,98.288,0.25]
[1643464555545,24.6673,98.339,98.289,2.5384042]
[1643464555746,15.266,98.37,98.29,0.25]
[1643464555946,22.9798,98.369,98.299,6.0]
[1643464556146,6.0,98.36,98.299,6.0]
[1643464556348,6.0,98.359,98.3,0.25]
[1643464556547,6.0,98.359,98.3,2.7884042]
[1643464556746,22.7311,98.358,98.3,0.25]
[1643464557349,22.7311,98.358,98.287,0.25]
[1643464557853,22.7311,98.358,98.295,6.0]
[1643464558050,22.7311,98.358,98.288,2.5384042]
[1643464558051,0.25,98.357,98.288,2.5384042]
[1643464558253,0.25,98.357,98.289,0.25]
[1643464561253,0.25,98.357,98.29,2.53814061]
[1643464561653,0.25,98.357,98.291,0.25]
[1643464562955,22.7311,98.358,98.292,2.53814061]
[1643464563362,22.7311,98.358,98.293,0.25]
[1643464563657,6.0,98.348,98.29,6.0]
[1643464563866,22.5873,98.347,98.29,6.0]
[1643464564457,22.5873,98.347,98.284,6.0]
[1643464564858,0.25,98.346,98.284,6.0]
[1643464565061,6.0,98.337,98.263,1.35242967]
[1643464565258,0.25,98.336,98.263,1.35242967]
[1643464565460,0.25,98.336,98.255,1.35242967]
[1643464565659,0.25,98.336,98.259,6.0]
[1643464565859,24.6612,98.336,98.259,6.0]
[1643464566063,24.6612,98.336,98.254,1.35242967]
[1643464566064,6.0,98.326,98.254,1.35242967]
[1643464566364,0.25,98.325,98.243,1.35242967]
[1643464566564,6.0,98.32,98.241,1.35242967]
[1643464566763,25.0479,98.319,98.241,1.35242967]
[1643464566961,25.0479,98.319,98.242,1.35242967]
[1643464567161,6.0,98.309,98.241,1.35242967]
[1643464567366,25.0479,98.308,98.241,6.0]
[1643464567864,25.0479,98.308,98.248,6.0]
[1643464568062,25.0479,98.308,98.243,1.35242967]
[1643464568262,25.0479,98.308,98.244,0.25]
[1643464568664,0.25,98.307,98.243,1.35242967]
[1643464568863,0.25,98.307,98.244,0.25]
[1643464569165,6.0,98.298,98.244,0.25]
[1643464569462,24.4659,98.297,98.244,0.25]
[1643464569863,24.2159,98.297,98.25,6.0]
[1643464570064,24.2159,98.297,98.251,6.0]
[1643464570265,24.2159,98.297,98.251,6.25]
[1643464570465,24.2159,98.297,98.252,6.0]
[1643464570865,24.2159,98.297,98.253,0.25]
[1643464571968,24.2159,98.297,98.243,0.25]
[1643464572169,0.25,98.296,98.242,0.25]
[1643464572369,0.25,98.296,98.241,112.8]
[1643464573170,24.2159,98.297,98.241,112.8]
[1643464573770,24.2159,98.297,98.242,0.25]
[1643464574977,24.2159,98.297,98.251,6.0]
[1643464575176,24.2159,98.297,98.242,0.25]
[1643464575779,0.25,98.296,98.242,0.25]
[1643464578601,24.2159,98.297,98.242,0.25]
[1643464584310,6.0,98.287,98.242,0.25]
[1643464584513,23.0007,98.286,98.242,0.25]
[1643464586009,6.0,98.276,98.241,112.8]
[1643464586412,23.0007,98.286,98.241,112.8]
[1643464586613,23.0007,98.286,98.242,0.25]
[1643464586811,0.25,98.285,98.242,0.25]
[1643464587412,23.0007,98.286,98.242,0.25]
[1643464587811,23.0007,98.286,98.23,0.25]
[1643464588010,23.0007,98.286,98.23,6.0]
[1643464588216,0.25,98.285,98.23,6.0]
[1643464588610,0.25,98.285,98.229,6.0]
[1643464589011,23.0007,98.286,98.229,6.0]
[1643464589411,23.0007,98.286,98.23,0.25]
[1643464590811,0.25,98.285,98.23,0.25]
[1643464591012,0.25,98.285,98.226,0.2707128]
[1643464591013,6.0,98.276,98.226,0.2707128]
[1643464591312,22.909,98.275,98.226,0.2707128]
[1643464591513,6.0,98.265,98.226,0.2707128]
[1643464591713,24.7472,98.264,98.226,0.2707128]
[1643464594921,6.0,98.254,98.226,0.2707128]
[1643464595217,12.4,98.25,98.226,0.2707128]
[1643464595621,6.0,98.24,98.226,0.2707128]
[1643464595817,0.25,98.239,98.226,0.2707128]
[1643464596019,6.0,98.238,98.226,0.2707128]
[1643464596418,6.0,98.23,98.226,0.2707128]
[1643464596621,6.0,98.227,98.226,0.2707128]
[1643464596820,6.25,98.227,98.226,0.2707128]
[1643464599021,6.25,98.227,98.226,0.0007128]
[1643464602256,6.25,98.227,98.226,0.5414256]
[1643464602428,6.25,98.227,98.154,112.8]
[1643464602629,18.4,98.22,98.154,112.8]
[1643464602826,0.25,98.219,98.154,112.8]
[1643464603225,23.2537,98.219,98.154,112.8]
[1643464603626,6.0,98.209,98.154,112.8]
[1643464603826,0.25,98.208,98.154,112.8]
[1643464604228,6.0,98.209,98.154,112.8]
[1643464605629,0.25,98.208,98.15,44.50311662]
[1643464606029,27.694,98.2,98.15,44.50311662]
[1643464606432,6.0,98.19,98.15,44.50311662]
[1643464606931,15.298,98.18,98.15,44.50311662]
[1643464607132,6.0,98.17,98.15,44.50311662]
[1643464607336,0.25,98.169,98.15,44.50311662]
[1643464609137,0.25,98.169,98.073,1.35242967]
[1643464609138,44.0890611,98.085,98.073,1.35242967]
[1643464609337,44.0890611,98.075,98.038,112.8]
[1643464610160,25.0890611,98.075,98.038,112.8]
[1643464610365,25.0890611,98.074,98.033,0.5264284]
[1643464610663,25.0890611,98.073,98.033,0.5264284]
[1643464610862,25.0890611,98.072,98.038,6.0]
[1643464611062,25.0890611,98.071,98.044,6.0]
[1643464611261,25.0890611,98.07,98.045,0.25]
[1643464611459,25.0890611,98.069,98.045,0.25]
[1643464611661,25.0890611,98.068,98.045,2.78190281]
[1643464611860,25.0890611,98.067,98.046,2.53190281]
[1643464612061,25.0890611,98.066,98.056,6.0]
[1643464612260,25.0890611,98.065,98.057,0.25]
[1643464612460,25.0890611,98.064,98.057,0.25]
[1643464612663,12.4,98.12,98.058,66.53190281]
[1643464612860,74.7213,98.168,98.058,66.53190281]
[1643464612861,12.4,98.15,98.059,36.77031492]
[1643464613063,22.5523,98.156,98.069,6.0]
[1643464613260,22.5523,98.156,98.07,0.25]
[1643464613461,22.5523,98.156,98.077,6.0]
[1643464613661,22.5523,98.156,98.07,0.25]
[1643464613662,22.5523,98.156,98.078,33.57257491]
[1643464613862,22.5523,98.156,98.079,0.25]
[1643464614061,22.5523,98.156,98.088,6.0]
[1643464614261,22.5523,98.156,98.089,0.25]
[1643464614462,22.5523,98.156,98.079,0.25]
[1643464614662,6.0,98.146,98.079,0.25]
[1643464614862,12.4,98.14,98.079,0.25]
[1643464615063,6.0,98.13,98.079,0.25]
[1643464615262,12.4,98.14,98.088,6.0]
[1643464615463,12.4,98.15,98.088,6.0]
[1643464615667,12.4,98.15,98.09,6.0]
[1643464615866,12.4,98.15,98.091,0.25]
[1643464616064,12.4,98.15,98.089,0.25]
[1643464616263,12.4,98.15,98.091,2.53196447]
[1643464616464,12.4,98.15,98.076,2.53196447]
[1643464616674,0.25,98.149,98.076,2.53196447]
[1643464616865,6.0,98.14,98.076,2.53196447]
[1643464617063,18.4,98.14,98.036,2.53196447]
[1643464617265,0.25,98.139,98.057,37.64812625]
[1643464617665,0.25,98.139,98.059,0.25]
[1643464618066,22.8213,98.139,98.059,0.25]
[1643464618668,6.0,98.129,98.059,0.25]
[1643464618867,6.0,98.129,98.06,2.52452084]
[1643464619269,6.0,98.129,98.061,0.25]
[1643464619471,22.8213,98.139,98.061,0.25]
[1643464619870,22.8213,98.139,98.07,6.0]
[1643464620072,6.0,98.129,98.061,0.25]
[1643464620274,0.25,98.128,98.059,0.25]
[1643464620672,6.25,98.128,98.059,0.25]
[1643464621072,23.5141,98.127,98.059,0.25]
[1643464621274,0.25,98.126,98.059,0.25]
[1643464622074,0.25,98.126,98.057,37.64812625]
[1643464622576,6.0,98.117,98.057,37.64812625]
[1643464622774,0.25,98.116,98.057,37.64812625]
[1643464623380,0.25,98.116,98.039,2.52452084]
[1643464624279,0.25,98.116,98.059,45.34558458]
[1643464625584,0.25,98.126,98.059,45.34558458]
[1643464626180,0.25,98.126,98.059,45.09558458]
[1643464626384,0.25,98.126,98.039,2.52452084]
[1643464626585,6.0,98.117,98.039,2.52452084]
[1643464626786,0.25,98.116,98.039,2.52452084]
[1643464627381,6.0,98.117,98.059,38.51267524]
[1643464627982,6.0,98.117,98.039,2.52452084]
[1643464628183,6.0,98.117,98.037,1.35242967]
[1643464628380,6.0,98.117,98.033,0.5264284]
[1643464628587,0.25,98.116,98.033,0.5264284]
[1643464628783,0.25,98.119,98.033,0.5264284]
[1643464628983,0.25,98.119,98.059,34.98869714]
[1643464629386,0.25,98.119,98.033,1.87885807]
[1643464629584,21.31,98.11,98.033,0.5264284]
[1643464629783,23.8986,98.109,98.033,1.87885807]
[1643464629986,6.0,98.099,98.033,1.87885807]
[1643464630186,6.0,98.099,98.033,0.5264284]
[1643464630384,0.25,98.098,98.056,45.57680414]
[1643464631487,0.25,98.098,98.059,0.25]
[1643464632387,0.25,98.108,98.059,0.25]
[1643464632687,23.6486,98.109,98.06,2.52239956]
[1643464632886,23.6486,98.109,98.068,6.0]
[1643464633087,23.6486,98.109,98.07,6.0]
[1643464633287,12.4,98.15,98.071,42.22426141]
[1643464633488,23.9457,98.137,98.081,6.0]
[1643464633890,23.9457,98.137,98.082,0.25]
[1643464634188,6.0,98.127,98.082,0.25]
[1643464634791,6.0,98.127,98.072,0.25]
[1643464635189,23.9457,98.137,98.073,2.52239956]
[1643464635388,23.9457,98.137,98.074,0.25]
[1643464635789,23.9457,98.137,98.075,2.52239956]
[1643464636221,6.0,98.127,98.073,1.35242967]
[1643464636416,6.0,98.127,98.069,1.35242967]
[1643464636614,6.0,98.127,98.065,1.35242967]
[1643464636814,0.25,98.126,98.066,0.25]
[1643464637016,0.25,98.126,98.063,1.35242967]
[1643464637218,0.25,98.126,98.065,0.25]
[1643464637619,0.25,98.126,98.066,3.87482923]
[1643464637821,6.0,98.127,98.067,0.25]
[1643464638020,6.0,98.127,98.069,1.35242967]
[1643464638418,6.0,98.127,98.07,0.25]
[1643464639022,6.0,98.117,98.071,2.52239956]
[1643464639218,6.0,98.117,98.07,0.25]
[1643464639419,6.0,98.117,98.07,1.60242967]
[1643464639621,6.0,98.127,98.07,1.60242967]
[1643464640121,23.9457,98.137,98.077,1.35242967]
[1643464640324,6.0,98.127,98.079,1.35242967]
[1643464640622,6.0,98.117,98.078,0.25]
[1643464640819,0.25,98.116,98.076,1.35242967]
[1643464641021,0.25,98.116,98.075,1.35242967]
[1643464641219,0.25,98.116,98.07,1.35242967]
[1643464641420,0.25,98.116,98.065,1.35242967]
[1643464641722,0.25,98.116,98.067,1.35242967]
[1643464641923,0.25,98.126,98.068,35.81633674]
[1643464642119,0.25,98.126,98.069,1.35242967]
[1643464643420,6.0,98.12,98.065,1.35242967]
[1643464643622,6.0,98.12,98.063,1.35242967]
[1643464643819,24.304,98.119,98.064,39.42376436]
[1643464644021,6.0,98.109,98.064,39.42376436]
[1643464644323,0.25,98.108,98.052,1.35242967]
[1643464644520,0.25,98.108,98.046,1.35242967]
[1643464644720,0.25,98.108,98.041,1.35242967]
[1643464644921,6.0,98.1,98.04,1.35242967]
[1643464645120,6.0,98.1,98.041,43.11613016]
[1643464645321,0.25,98.099,98.039,1.35242967]
[1643464645524,15.313,98.09,98.041,1.35242967]
[1643464645724,23.6148,98.089,98.038,1.35242967]
[1643464645921,23.8648,98.089,98.038,1.35242967]
[1643464646122,6.0,98.079,98.037,1.35242967]
[1643464646322,12.4,98.11,98.038,46.73009816]
[1643464646521,13.47008645,98.177,98.038,46.73009816]
[1643464646522,6.0,98.1,98.051,1.35242967]
[1643464646722,24.8135,98.128,98.062,33.20682531]
[1643464646926,6.0,98.118,98.062,33.20682531]
[1643464647129,24.8135,98.128,98.062,33.20682531]
[1643464647326,6.0,98.118,98.062,33.20682531]
[1643464647525,24.8135,98.128,98.062,33.20682531]
[1643464647724,24.8135,98.128,98.063,0.25]
[1643464648127,6.0,98.118,98.063,0.25]
[1643464648425,6.0,98.118,98.062,34.55925498]
[1643464648627,0.25,98.117,98.062,33.20682531]
[1643464648827,0.25,98.117,98.056,1.35242967]
[1643464649028,6.0,98.11,98.055,1.35242967]
[1643464649326,0.25,98.109,98.042,1.35242967]
[1643464649528,24.0979,98.109,98.042,1.35242967]
[1643464649726,24.0979,98.109,98.04,1.35242967]
[1643464649928,6.0,98.099,98.043,35.81600432]
[1643464650328,0.25,98.098,98.043,35.81600432]
[1643464651328,0.25,98.098,98.034,1.35242967]
[1643464651630,0.25,98.098,98.035,0.25]
[1643464653029,0.25,98.098,98.033,1.87885807]
[1643464653230,12.4,98.09,98.033,0.5264284]
[1643464653431,101.8,98.089,98.033,0.5264284]
[1643464653631,6.0,98.079,98.033,0.5264284]
[1643464653830,12.4,98.07,98.033,0.5264284]
[1643464654031,6.0,98.06,98.033,0.5264284]
[1643464654429,6.25,98.059,98.033,0.5264284]
[1643464655430,6.25,98.059,97.985,0.90393172]
[1643464655431,64.0,98.049,97.985,0.90393172]
[1643464655631,6.0,98.039,97.901,0.2169635]
[1643464655830,12.4,98.03,97.927,41.60614647]
[1643464656032,6.0,98.02,97.927,41.60614647]
[1643464656232,23.8336,98.019,97.927,41.60614647]
[1643464656533,30.0836,98.019,97.927,41.60614647]
[1643464656733,6.0,98.01,97.927,41.60614647]
[1643464656931,6.0,98.01,97.901,0.2169635]
[1643464657134,31.0939,98.009,97.901,0.2169635]
[1643464657533,6.0,98.0,97.901,0.2169635]
[1643464657935,6.25,97.999,97.925,34.81826762]
[1643464658834,6.0,97.999,97.942,46.57249275]
[1643464659035,0.25,97.998,97.942,46.57249275]
[1643464659234,24.8439,98.009,97.942,46.57249275]
[1643464660235,23.8336,98.019,97.942,46.57249275]
[1643464660439,6.0,98.009,97.942,46.57249275]
[1643464660636,6.0,98.009,97.942,0.040353]
[1643464661037,6.0,98.008,97.942,0.040353]
[1643464661337,0.25,98.007,97.942,0.040353]
[1643464661539,6.0,98.008,97.942,0.040353]
[1643464662437,6.0,98.0,97.942,0.040353]
[1643464662939,0.25,97.999,97.942,0.040353]
[1643464663337,0.25,98.007,97.942,0.040353]
[1643464663537,6.0,98.0,97.942,0.040353]
[1643464663739,21.327,98.0,97.942,0.040353]
[1643464663938,0.25,97.999,97.942,0.040353]
[1643464664541,15.327,98.0,97.942,0.040353]
[1643464665141,23.6917,97.999,97.942,0.040353]
[1643464665344,6.0,97.99,97.942,0.040353]
[1643464665543,23.6917,97.999,97.942,0.040353]
[1643464665947,12.4,98.01,97.942,0.040353]
[1643464666145,0.25,97.998,97.942,0.040353]
[1643464666345,0.25,98.009,97.942,0.040353]
[1643464666747,24.6864,98.018,97.943,42.97375278]
[1643464667148,24.6864,98.018,97.944,0.25]
[1643464667351,24.6864,98.018,97.942,0.040353]
[1643464668151,6.0,98.008,97.942,0.040353]
[1643464668351,0.25,98.007,97.943,41.23064295]
[1643464668753,6.0,98.008,97.944,0.25]
[1643464669152,6.0,98.008,97.953,6.0]
[1643464669554,6.0,98.008,97.944,0.25]
[1643464670079,73.3208,98.055,97.953,6.0]
[1643464670270,12.4,98.04,97.954,0.25]
[1643464671071,6.0,98.03,97.954,0.25]
[1643464671471,12.4,98.04,97.954,0.25]
[1643464671674,12.4,98.04,97.954,102.05]
[1643464672072,22.7343,98.048,97.968,41.13387111]
[1643464672273,22.7343,98.048,97.969,0.25]
[1643464672476,12.4,98.09,97.979,101.8]
[1643464672682,12.4,98.1,97.979,101.8]
[1643464672873,47.5665,98.106,97.996,42.72742857]
[1643464673075,47.5665,98.106,98.006,6.0]
[1643464673273,47.5665,98.106,98.007,0.25]
[1643464673473,47.5665,98.106,98.01,6.0]
[1643464673675,12.4,98.13,98.011,39.35726998]
[1643464673874,12.4,98.13,98.011,42.12966954]
[1643464674077,12.4,98.13,98.022,101.8]
[1643464674375,12.4,98.13,98.023,0.25]
[1643464674573,23.1772,98.136,98.033,41.23575189]
[1643464674772,23.1772,98.136,98.034,102.05]
[1643464674973,6.0,98.126,98.043,6.0]
[1643464675177,6.0,98.126,98.044,6.0]
[1643464675374,9.03,98.143,98.045,0.25]
[1643464675775,9.03,98.143,98.074,0.30159727]
[1643464676175,9.03,98.143,98.075,2.52233608]
[1643464676377,9.03,98.143,98.076,46.43317481]
[1643464676777,9.03,98.143,98.077,104.32233608]
[1643464677183,9.03,98.143,98.076,46.18317481]
[1643464677577,6.0,98.133,98.076,46.18317481]
[1643464677780,6.0,98.123,98.076,46.18317481]
[1643464677978,24.3813,98.179,98.077,64.0]
[1643464677979,12.4,98.17,98.077,64.0]
[1643464678180,12.4,98.2,98.086,6.0]
[1643464678384,78.4452,98.203,98.087,6.0]
[1643464678591,78.4452,98.203,98.087,6.25]
[1643464678979,78.4452,98.203,98.091,42.07700866]
[1643464679180,78.4452,98.203,98.097,6.0]
[1643464679379,78.4452,98.203,98.101,6.0]
[1643464679579,78.4452,98.203,98.102,6.0]
[1643464679882,63.364,98.26,98.11,12.7150564]
[1643464680079,12.4,98.28,98.12,6.0]
[1643464680282,12.4,98.28,98.142,0.32238284]
[1643464680490,74.6786,98.316,98.131,35.17956492]
[1643464680491,12.4,98.27,98.131,35.17956492]
[1643464680679,12.4,98.27,98.131,35.42956492]
[1643464680880,2.95669142,98.264,98.132,0.25]
[1643464681079,12.4,98.25,98.132,0.25]
[1643464681281,15.286,98.25,98.132,0.25]
[1643464681481,2.95669142,98.278,98.145,0.31674808]
[1643464681680,73.2339,98.287,98.145,0.31674808]
[1643464681881,12.4,98.31,98.15,6.0]
[1643464682082,145.59003141,98.332,98.16,12.4]
[1643464682282,12.4,98.3,98.161,0.25]
[1643464682481,15.283,98.28,98.17,6.0]
[1643464682681,27.683,98.28,98.171,34.02795563]
[1643464682880,27.683,98.28,98.171,40.27795563]
[1643464683083,6.0,98.27,98.171,34.27795563]
[1643464683282,0.25,98.269,98.171,34.27795563]
[1643464683487,0.25,98.269,98.181,6.0]
[1643464683682,0.25,98.269,98.172,2.53060615]
[1643464683886,0.25,98.269,98.15,31.90870549]
[1643464683887,0.25,98.269,98.15,19.50870549]
[1643464684084,2.23663632,98.26,98.05,12.4]
[1643464684284,167.41,98.25,98.05,12.4]
[1643464684483,75.7734,98.249,98.051,2.53060615]
[1643464684687,76.0234,98.249,98.051,104.33060615]
[1643464684884,6.0,98.239,98.053,101.8]
[1643464685085,12.4,98.23,98.053,101.8]
[1643464685284,0.25,98.229,98.054,2.78053172]
[1643464685485,15.292,98.21,98.063,6.0]
[1643464685687,15.292,98.21,98.07,12.4]
[1643464685886,6.0,98.2,98.071,44.64290472]
[1643464686086,6.0,98.2,98.081,6.0]
[1643464686287,12.4,98.19,98.082,0.25]
[1643464686487,12.4,98.19,98.071,44.64290472]
[1643464686688,21.298,98.18,98.071,44.64290472]
[1643464686890,21.298,98.18,98.083,2.53053172]
[1643464687089,6.0,98.18,98.083,2.53053172]
[1643464687288,0.25,98.179,98.084,0.25]
[1643464687495,0.25,98.179,98.091,34.1089555]
[1643464687889,6.0,98.209,98.092,0.25]
[1643464688089,0.25,98.208,98.092,2.7805133]
[1643464688489,0.25,98.208,98.093,2.5305133]
[1643464688890,0.25,98.208,98.103,6.0]
[1643464689189,6.0,98.209,98.104,2.5305133]
[1643464689390,6.0,98.209,98.104,2.7805133]
[1643464689591,6.0,98.209,98.114,6.0]
[1643464689791,15.819123,98.208,98.115,39.40328931]
[1643464689991,6.0,98.198,98.115,39.40328931]
[1643464690191,6.0,98.198,98.116,0.25]
[1643464690594,6.0,98.19,98.116,0.25]
[1643464690794,0.25,98.189,98.116,0.25]
[1643464690991,15.297,98.18,98.116,0.25]
[1643464691192,15.297,98.18,98.115,39.40328931]
[1643464691193,0.25,98.179,98.115,39.40328931]
[1643464691392,6.0,98.17,98.115,39.40328931]
[1643464691793,0.25,98.169,98.115,39.40328931]
[1643464693397,0.25,98.189,98.116,0.25]
[1643464693798,6.0,98.19,98.117,2.51986507]
[1643464694198,6.0,98.19,98.118,0.25]
[1643464694396,18.4,98.2,98.115,39.40328931]
[1643464694597,12.4,98.19,98.115,39.40328931]
[1643464694995,6.0,98.18,98.115,39.40328931]
[1643464695197,6.0,98.18,98.116,0.25]
[1643464695396,0.25,98.179,98.116,0.25]
[1643464696198,0.25,98.179,98.115,39.40328931]